bitfinex/quotes_SOLUSD_20250903
["timestamp","ask_amount","ask_price","bid_price","bid_amount"]
[1756920338108,0.06,211.06,211.03,0.69]
[1756920338609,0.06,211.06,211.04,0.69]
[1756920340430,0.06,211.06,211.05,0.69]
[1756920340924,0.06,211.06,211.03,5.42866274]
[1756920341229,0.06,211.06,211.03,0.69]
[1756920341534,4.69563878,211.06,211.03,0.69]
[1756920341718,0.06,211.06,211.03,0.69]
[1756920342421,5.35563878,211.06,211.01,0.71]
[1756920342604,4.63563878,211.05,211.01,0.71]
[1756920342801,4.63563878,211.05,211.0,0.03]
[1756920342802,5.29563878,211.05,211.0,0.03]
[1756920343007,10.0338932,211.05,211.0,0.74]
[1756920343319,4.63563878,211.03,211.0,0.74]
[1756920343627,4.63563878,211.01,211.0,0.03]
[1756920344619,0.66,211.03,211.0,0.03]
[1756920344817,4.63563878,211.01,211.0,0.03]
[1756920345923,5.29563878,211.01,211.0,0.03]
[1756920346109,10.03475067,211.01,211.0,0.03]
[1756920346740,9.37475067,211.01,211.0,0.03]
[1756920347035,4.63563878,211.01,211.0,0.03]
[1756920347409,0.06,211.06,211.0,0.74]
[1756920347623,4.63563878,211.03,211.0,0.74]
[1756920347838,0.06,211.06,211.01,0.71]
[1756920348019,4.63563878,211.04,211.0,0.03]
[1756920348227,4.63563878,211.04,211.01,0.71]
[1756920348932,5.45802775,211.06,211.01,0.71]
[1756920349136,4.63563878,211.04,211.01,0.71]
[1756920351019,4.63563878,211.04,211.0,4.76929619]
[1756920351218,4.63563878,211.03,211.01,0.71]
[1756920352535,4.63563878,211.03,211.0,0.03]
[1756920352712,4.63563878,211.03,211.0,0.74]
[1756920354234,4.63563878,211.01,211.0,0.03]
[1756920356347,5.29563878,211.01,211.0,0.03]
[1756920357660,0.66,211.01,211.0,0.03]
[1756920357949,5.29563878,211.01,211.0,0.03]
[1756920358126,0.66,211.05,211.0,0.74]
[1756920358329,4.63563878,211.03,211.0,0.74]
[1756920358529,4.63563878,211.02,211.0,0.03]
[1756920359244,5.29563878,211.01,211.0,0.03]
[1756920360345,0.06,211.01,211.0,0.03]
[1756920360548,0.06,211.01,211.0,0.74]
[1756920360757,0.06,211.01,211.0,5.37563878]
[1756920361137,0.06,211.01,211.0,0.74]
[1756920361334,0.06,211.01,211.0,19.0749305]
[1756920361532,0.06,211.01,211.0,23.71056928]
[1756920362057,0.06,211.01,211.0,55.9549305]
[1756920362229,0.06,211.01,211.0,60.59056928]
[1756920362426,0.06,211.01,211.0,55.9549305]
[1756920362631,0.06,211.01,211.0,4.76933649]
[1756920362937,0.06,211.01,211.0,0.74]
[1756920363140,0.06,211.01,211.0,5.47933649]
[1756920365369,0.06,211.01,211.0,0.03]
[1756920365666,4.69563878,211.01,211.0,0.03]
[1756920366564,0.06,211.01,211.0,0.74]
[1756920366769,0.06,211.01,211.0,4.76933649]
[1756920366956,0.06,211.01,211.0,0.03]
[1756920367278,0.06,211.01,211.0,5.37563878]
[1756920368359,0.06,211.01,211.0,1.02432314]
[1756920368666,0.06,211.01,211.0,10.3556007]
[1756920369659,0.06,211.01,211.0,15.09493719]
[1756920370763,1e-08,211.01,211.0,28.6905312]
[1756920376159,1e-08,211.04,211.03,39.59559401]
[1756920376354,0.06,211.09,211.05,0.28432314]
[1756920376674,0.06,211.09,211.08,18.51555593]
[1756920376848,1e-08,211.09,211.08,19.23555593]
[1756920377042,1e-08,211.09,211.08,60.75119471]
[1756920377247,1e-08,211.09,211.08,65.48873497]
[1756920377668,1e-08,211.09,211.08,66.0572398]
[1756920378353,1e-08,211.09,211.08,24.54160102]
[1756920378550,1e-08,211.09,211.08,61.42160102]
[1756920380765,1e-08,211.09,211.08,66.0572398]
[1756920380972,1e-08,211.11,211.1,39.87991715]
[1756920381171,1e-08,211.11,211.1,81.9440069]
[1756920381372,1e-08,211.11,211.1,82.6640069]
[1756920381671,1e-08,211.11,211.1,84.5614951]
[1756920382356,1e-08,211.11,211.1,89.29858652]
[1756920385778,1e-08,211.11,211.1,52.43858652]
[1756920385969,1e-08,211.11,211.1,89.29858652]
[1756920386972,1e-08,211.11,211.1,167.89858652]
[1756920387174,1e-08,211.11,211.1,167.33013555]
[1756920387697,1e-08,211.12,211.11,13.87991715]
[1756920387853,0.06,211.16,211.11,13.87991715]
[1756920387854,0.06,211.16,211.14,13.59559401]
[1756920388053,0.06,211.16,211.13,18.61633547]
[1756920388054,1e-08,211.16,211.15,55.94387229]
[1756920388374,1e-08,211.16,211.15,57.84091054]
[1756920388581,1e-08,211.16,211.15,58.56091054]
[1756920389875,1e-08,211.18,211.17,39.87991715]
[1756920390077,0.06,211.21,211.19,0.28432314]
[1756920390292,0.06,211.21,211.2,50.45559401]
[1756920390660,0.06,211.21,211.2,55.09123279]
[1756920390979,0.06,211.21,211.2,56.98809112]
[1756920391192,0.06,211.21,211.2,52.35245234]
[1756920391361,0.06,211.21,211.2,56.98809112]
[1756920391968,0.06,211.21,211.2,61.7229396]
[1756920393566,0.06,211.21,211.2,62.00726274]
[1756920393881,0.06,211.21,211.2,62.57544455]
[1756920394386,0.06,211.21,211.2,25.71544455]
[1756920394677,0.06,211.21,211.2,62.55544455]
[1756920395255,0.06,211.21,211.2,63.27544455]
[1756920395465,1e-08,211.21,211.2,63.27544455]
[1756920395961,1e-08,211.21,211.2,25.71544455]
[1756920396375,0.68000001,211.21,211.2,47.07980577]
[1756920396570,1e-08,211.21,211.2,88.55544455]
[1756920397164,1e-08,211.21,211.2,89.27544455]
[1756920397485,1e-08,211.21,211.2,99.43626707]
[1756920397672,1e-08,211.21,211.2,98.86808526]
[1756920397873,1e-08,211.21,211.2,72.86808526]
[1756920398169,1e-08,211.23,211.22,39.87991715]
[1756920398380,1e-08,211.23,211.22,79.67920941]
[1756920398582,1e-08,211.23,211.22,84.98173757]
[1756920398783,1e-08,211.23,211.22,86.87823616]
[1756920398992,1e-08,211.23,211.22,84.6389439]
[1756920399176,1e-08,211.23,211.22,87.59823616]
[1756920399492,1e-08,211.23,211.22,50.75823616]
[1756920399794,1e-08,211.23,211.22,86.87823616]
[1756920400664,1e-08,211.23,211.22,50.03823616]
[1756920400863,1e-08,211.23,211.22,86.87823616]
[1756920401092,0.68000001,211.23,211.22,46.22649275]
[1756920401268,0.68000001,211.23,211.22,15.4920926]
[1756920401601,0.68000001,211.23,211.22,36.84]
[1756920401894,3.63929227,211.23,211.22,36.84]
[1756920402873,3.63929227,211.23,211.19,0.03]
[1756920402874,8.3734952,211.23,211.19,0.03]
[1756920403069,2.95929226,211.2,211.19,0.03]
[1756920403570,3.61929226,211.2,211.19,36.87]
[1756920404277,3.61929226,211.2,211.19,0.03]
[1756920404763,8.35414074,211.2,211.19,0.03]
[1756920407296,20.19130978,211.2,211.19,0.03]
[1756920407674,8.35414074,211.2,211.19,0.03]
[1756920410094,26.0,211.17,211.16,0.03]
[1756920410394,28.95929226,211.17,211.16,0.03]
[1756920410577,29.61929226,211.17,211.16,0.03]
[1756920410901,33.39564916,211.17,211.14,0.03]
[1756920411201,28.95929226,211.15,211.14,0.03]
[1756920411378,33.69526194,211.15,211.14,0.03]
[1756920411572,34.35526194,211.15,211.14,0.03]
[1756920412176,29.61929226,211.15,211.14,0.03]
[1756920412485,3.61929226,211.15,211.14,0.03]
[1756920412795,4.7346243,211.21,211.14,0.03]
[1756920412996,3.61929226,211.17,211.14,0.03]
[1756920413376,2.95929226,211.17,211.16,0.03]
[1756920414197,3.61929226,211.17,211.16,0.03]
[1756920414997,0.66,211.17,211.16,0.03]
[1756920415297,2.95929226,211.2,211.16,0.03]
[1756920415800,3.61929226,211.2,211.16,0.03]
[1756920416775,2.95929226,211.2,211.16,0.03]
[1756920416992,2.95929226,211.17,211.16,0.03]
[1756920417197,3.61929226,211.17,211.16,0.03]
[1756920417885,8.3548134,211.17,211.16,0.03]
[1756920419004,3.61929226,211.17,211.16,0.03]
[1756920419194,8.3548134,211.17,211.16,0.03]
[1756920420211,3.61929226,211.17,211.16,0.03]
[1756920420386,2.95929226,211.19,211.16,0.03]
[1756920421605,2.95929226,211.21,211.16,13.62559401]
[1756920421811,2.95929226,211.21,211.16,14.29559401]
[1756920421990,2.95929226,211.21,211.17,36.84]
[1756920422189,2.95929226,211.22,211.17,36.84]
[1756920422503,2.95929227,211.23,211.18,14.26559401]
[1756920422803,2.95929226,211.22,211.16,2.98929226]
[1756920423105,1e-08,211.23,211.16,0.03]
[1756920423106,2.95929226,211.19,211.16,0.03]
[1756920423278,2.95929226,211.19,211.16,13.62559401]
[1756920423279,2.95929226,211.18,211.16,13.62559401]
[1756920423614,2.95929226,211.18,211.16,0.03]
[1756920424205,2.95929226,211.19,211.16,0.03]
[1756920424407,2.95929226,211.18,211.16,0.03]
[1756920424589,2.95929226,211.17,211.16,0.03]
[1756920424910,3.61929226,211.17,211.16,0.03]
[1756920426395,2.95929226,211.18,211.16,0.03]
[1756920426978,3.61929226,211.17,211.16,0.03]
[1756920429023,28.95929226,211.17,211.16,0.03]
[1756920429904,1e-08,211.23,211.16,17.25488627]
[1756920430109,1e-08,211.23,211.19,2.95929226]
[1756920430286,1e-08,211.23,211.2,53.41488627]
[1756920430683,0.06,211.21,211.2,54.08488627]
[1756920431209,0.06,211.21,211.2,58.81973475]
[1756920431789,0.06,211.21,211.2,55.86044249]
[1756920432106,0.06,211.21,211.2,58.81973475]
[1756920432610,0.06,211.21,211.2,59.10405789]
[1756920432784,0.06,211.21,211.2,24.14082627]
[1756920432990,0.06,211.21,211.2,20.22721087]
[1756920433190,0.06,211.21,211.2,55.19044249]
[1756920433591,0.06,211.21,211.2,58.84973475]
[1756920434821,0.06,211.21,211.2,58.14973475]
[1756920434997,0.06,211.21,211.2,55.19044249]
[1756920436015,0.06,211.21,211.19,1.89712822]
[1756920436198,0.06,211.21,211.2,36.86]
[1756920438843,0.06,211.21,211.2,59.13405789]
[1756920439133,0.06,211.21,211.2,138.3022397]
[1756920439295,1e-08,211.23,211.21,13.59559401]
[1756920439496,1e-08,211.23,211.22,16.55488627]
[1756920439697,1e-08,211.23,211.22,17.25488627]
[1756920439905,1e-08,211.23,211.22,19.02999416]
[1756920440128,1e-08,211.23,211.22,56.1943173]
[1756920442029,1e-08,211.23,211.22,19.3143173]
[1756920442401,1e-08,211.23,211.22,56.1943173]
[1756920442841,1e-08,211.23,211.22,59.15360956]
[1756920443133,1e-08,211.23,211.22,61.05037794]
[1756920443731,1e-08,211.23,211.22,57.39108568]
[1756920444427,1e-08,211.23,211.22,61.05037794]
[1756920444637,1e-08,211.23,211.22,61.61850595]
[1756920446312,1e-08,211.23,211.22,61.59850595]
[1756920447632,1e-08,211.23,211.22,61.03037794]
[1756920448638,1e-08,211.23,211.22,60.33037794]
[1756920448938,1e-08,211.23,211.22,23.47037794]
[1756920449245,1e-08,211.23,211.22,60.31037794]
[1756920449409,1e-08,211.23,211.22,23.47037794]
[1756920449606,0.70000001,211.23,211.22,20.22676254]
[1756920449808,0.70000001,211.23,211.17,12.53862751]
[1756920450145,3.65929227,211.23,211.2,13.59559401]
[1756920450312,0.7,211.22,211.2,13.59559401]
[1756920450515,2.95929226,211.22,211.21,36.84]
[1756920451010,3.65929226,211.22,211.21,36.84]
[1756920451555,1e-08,211.23,211.21,36.84]
[1756920451742,1e-08,211.23,211.22,17.53920941]
[1756920453517,1e-08,211.23,211.22,22.27360956]
[1756920454317,1e-08,211.23,211.22,18.6143173]
[1756920454639,1e-08,211.23,211.22,55.4743173]
[1756920455432,1e-08,211.23,211.22,59.13360956]
[1756920455643,1e-08,211.23,211.22,21.57360956]
[1756920455824,1e-08,211.23,211.22,58.43360956]
[1756920456019,1e-08,211.23,211.22,59.13360956]
[1756920457248,1e-08,211.23,211.22,58.43360956]
[1756920457622,1e-08,211.23,211.22,21.57360956]
[1756920457839,1e-08,211.23,211.22,58.43360956]
[1756920458536,1e-08,211.23,211.22,21.57360956]
[1756920458832,1e-08,211.23,211.22,58.43360956]
[1756920459535,1e-08,211.23,211.22,60.09964265]
[1756920460038,1e-08,211.23,211.22,60.79964265]
[1756920462314,1e-08,211.23,211.22,139.39964265]
[1756920464843,1e-08,211.23,211.22,134.7743173]
[1756920465030,1e-08,211.23,211.22,139.39964265]
[1756920465743,1e-08,211.23,211.22,102.53964265]
[1756920466046,1e-08,211.23,211.22,139.35964265]
[1756920467421,1e-08,211.23,211.22,101.83964265]
[1756920467621,1e-08,211.23,211.22,138.65964265]
[1756920468042,1e-08,211.23,211.22,139.34964265]
[1756920469420,1e-08,211.23,211.22,138.65964265]
[1756920474128,0.71000001,211.23,211.22,134.0343173]
[1756920474328,0.71000001,211.23,211.22,55.4343173]
[1756920475649,1e-08,211.23,211.22,60.05964265]
[1756920476251,1e-08,211.23,211.22,60.74964265]
[1756920478755,1e-08,211.24,211.23,0.28432314]
[1756920478970,1e-08,211.24,211.23,19.76334362]
[1756920480241,1e-08,211.24,211.23,97.67334362]
[1756920480446,0.71000001,211.24,211.23,129.29991715]
[1756920480765,1e-08,211.24,211.23,134.03409316]
[1756920481464,1e-08,211.24,211.23,139.34941851]
[1756920483363,1e-08,211.24,211.23,138.65941851]
[1756920486971,1e-08,211.24,211.23,101.83941851]
[1756920487270,1e-08,211.24,211.23,138.65941851]
[1756920487657,1e-08,211.24,211.23,139.34941851]
[1756920488370,1e-08,211.24,211.23,138.65941851]
[1756920488865,1e-08,211.24,211.23,139.34941851]
[1756920491172,0.2,211.28,211.25,0.28432314]
[1756920491381,0.2,211.28,211.27,0.28432314]
[1756920491586,0.2,211.28,211.27,19.18119039]
[1756920492977,0.2,211.28,211.27,18.61319683]
[1756920493153,0.86,211.28,211.27,18.61319683]
[1756920493353,0.86,211.28,211.27,55.43319683]
[1756920494176,0.2,211.28,211.27,55.43319683]
[1756920494857,0.86,211.28,211.27,55.43319683]
[1756920495254,0.2,211.28,211.27,55.43319683]
[1756920496564,0.86,211.28,211.27,55.43319683]
[1756920497278,0.2,211.28,211.27,55.43319683]
[1756920499878,0.06,211.29,211.28,13.87991715]
[1756920500067,0.06,211.31,211.3,4.90964849]
[1756920500266,0.06,211.31,211.3,55.87315542]
[1756920500787,0.06,211.31,211.3,51.24783007]
[1756920501402,0.72,211.31,211.3,13.87991715]
[1756920501697,5.34532535,211.31,211.3,50.67991715]
[1756920501884,0.72,211.31,211.3,50.67991715]
[1756920502069,0.72,211.31,211.3,55.41252481]
[1756920506881,0.06,211.31,211.3,55.41252481]
[1756920507080,0.06,211.31,211.3,56.07252481]
[1756920508173,0.06,211.31,211.3,18.61252481]
[1756920508377,0.06,211.31,211.3,55.41252481]
[1756920508780,0.72,211.31,211.3,55.41252481]
[1756920509392,0.06,211.31,211.3,18.61252481]
[1756920509590,0.06,211.31,211.3,55.41252481]
[1756920509802,0.72,211.31,211.3,55.41252481]
[1756920510273,0.06,211.31,211.3,56.07252481]
[1756920511002,0.06,211.31,211.3,55.41252481]
[1756920511374,0.06,211.31,211.3,18.61252481]
[1756920511677,0.72,211.31,211.3,55.41252481]
[1756920512277,0.06,211.31,211.3,55.41252481]
[1756920513083,0.72,211.31,211.3,55.41252481]
[1756920515175,0.06,211.31,211.3,55.41252481]
[1756920517102,0.72,211.31,211.3,55.41252481]
[1756920519684,0.06,211.31,211.3,55.41252481]
[1756920524207,0.76,211.31,211.3,55.41252481]
[1756920524505,3.71867173,211.31,211.3,50.37559401]
[1756920525020,3.71867173,211.31,211.3,36.78]
[1756920525607,3.71867173,211.31,211.28,13.59559401]
[1756920525782,0.06,211.31,211.3,13.59559401]
[1756920525984,0.06,211.31,211.3,13.87991715]
[1756920526896,0.06,211.31,211.3,18.61252481]
[1756920529313,0.06,211.31,211.3,19.26252481]
[1756920529517,0.06,211.31,211.3,18.61252481]
[1756920530215,0.06,211.31,211.3,19.26252481]
[1756920531718,0.06,211.31,211.3,21.15848405]
[1756920532932,0.06,211.31,211.3,21.07639697]
[1756920534002,0.06,211.31,211.3,21.72639697]
[1756920534402,0.06,211.31,211.3,21.07639697]
[1756920534602,0.06,211.31,211.3,20.50848405]
[1756920535706,0.06,211.31,211.3,21.72639697]
[1756920536018,0.06,211.31,211.3,58.50639697]
[1756920537117,0.06,211.31,211.3,57.28848405]
[1756920538497,0.06,211.31,211.3,58.50639697]
[1756920538694,0.06,211.31,211.3,60.89715578]
[1756920539024,0.06,211.31,211.3,61.4650687]
[1756920540316,0.06,211.31,211.3,57.85639697]
[1756920540520,0.06,211.31,211.3,57.28848405]
[1756920542525,0.76,211.31,211.3,57.28848405]
[1756920542710,0.06,211.31,211.3,58.91910946]
[1756920542915,0.06,211.31,211.3,63.28778119]
[1756920548022,0.06,211.31,211.3,62.63778119]
[1756920549337,0.06,211.31,211.3,59.67910946]
[1756920549540,0.06,211.31,211.3,62.63778119]
[1756920555242,0.06,211.31,211.3,59.11119654]
[1756920560463,0.75,211.31,211.3,59.11119654]
[1756920560670,0.06,211.31,211.3,59.11119654]
[1756920561042,0.75,211.31,211.3,59.11119654]
[1756920562161,0.06,211.31,211.3,59.11119654]
[1756920563454,0.06,211.31,211.3,62.06986827]
[1756920563854,1e-08,211.31,211.3,62.06986827]
[1756920564046,1e-08,211.33,211.32,39.73775558]
[1756920564362,1e-08,211.33,211.32,84.8786078]
[1756920564737,1e-08,211.33,211.32,86.77420763]
[1756920565147,1e-08,211.33,211.32,86.20634846]
[1756920566853,1e-08,211.33,211.32,83.24767673]
[1756920567063,1e-08,211.33,211.32,86.20634846]
[1756920569256,1e-08,211.33,211.32,164.80634846]
[1756920570964,0.69000001,211.33,211.32,125.10767673]
[1756920571162,0.69000001,211.33,211.32,161.56335359]
[1756920571873,0.69000001,211.33,211.32,161.84767673]
[1756920572642,1e-08,211.33,211.32,164.80634846]
[1756920572869,1e-08,211.33,211.32,165.51634846]
[1756920573658,1e-08,211.33,211.32,164.80634846]
[1756920574672,0.31000001,211.36,211.33,13.87991715]
[1756920574871,0.31000001,211.36,211.35,13.87991715]
[1756920575256,0.31000001,211.36,211.35,16.83858888]
[1756920576574,0.06,211.38,211.36,0.28432314]
[1756920576871,0.06,211.38,211.37,50.61991715]
[1756920577073,8.04925426,211.55,211.38,13.59559401]
[1756920577074,2.95867173,211.44,211.38,13.59559401]
[1756920577368,0.69,211.42,211.4,13.87991715]
[1756920577573,2.95867173,211.44,211.42,13.59559401]
[1756920578149,0.89,211.43,211.42,27.80922488]
[1756920578350,3.84867173,211.43,211.42,36.74]
[1756920579574,3.84867173,211.43,211.42,41.46992148]
[1756920580071,0.89,211.43,211.42,41.46992148]
[1756920580277,0.89,211.43,211.42,55.06551549]
[1756920580649,0.89,211.43,211.42,64.54989834]
[1756920580949,3.84867173,211.43,211.42,36.72]
[1756920581570,5.50931434,211.43,211.42,36.72]
[1756920582980,0.89,211.43,211.42,36.72]
[1756920583168,0.89,211.43,211.42,50.31559401]
[1756920583361,0.89,211.43,211.42,64.52989833]
[1756920583879,0.89,211.43,211.42,69.25981981]
[1756920584189,0.89,211.43,211.42,55.04551549]
[1756920584969,0.89,211.43,211.42,59.66482983]
[1756920585375,0.2,211.43,211.42,59.66482983]
[1756920588789,0.2,211.43,211.42,22.94482983]
[1756920588991,0.2,211.43,211.42,59.66482983]
[1756920589674,0.2,211.43,211.42,59.94915297]
[1756920590292,0.88,211.43,211.42,59.66482983]
[1756920590799,0.88,211.43,211.42,54.93490835]
[1756920591088,0.88,211.43,211.42,59.66482983]
[1756920591697,0.2,211.43,211.42,59.66482983]
[1756920591987,0.88,211.43,211.42,59.66482983]
[1756920592170,0.2,211.43,211.42,59.66482983]
[1756920594077,0.88,211.43,211.42,59.66482983]
[1756920595289,0.2,211.43,211.42,65.23846731]
[1756920596598,0.2,211.43,211.42,60.61915297]
[1756920596893,0.2,211.43,211.42,65.23846731]
[1756920598274,0.2,211.43,211.42,60.61915297]
[1756920598478,0.2,211.43,211.42,65.23846731]
[1756920599391,0.2,211.43,211.42,64.56846731]
[1756920599703,0.88,211.43,211.42,59.64482983]
[1756920600202,0.2,211.43,211.42,59.64482983]
[1756920601182,0.2,211.43,211.42,60.31482983]
[1756920601383,0.2,211.43,211.42,59.64482983]
[1756920602412,0.2,211.43,211.42,22.94482983]
[1756920602610,0.2,211.43,211.42,59.64482983]
[1756920603391,0.88,211.43,211.42,54.91490835]
[1756920603590,0.88,211.43,211.42,50.29559401]
[1756920603791,0.88,211.43,211.42,55.02551549]
[1756920604084,5.49931434,211.43,211.41,4.61931434]
[1756920604291,4.81931434,211.43,211.42,36.7]
[1756920605112,0.88,211.43,211.42,36.7]
[1756920605487,0.2,211.43,211.42,50.29559401]
[1756920605892,0.2,211.43,211.42,50.96559401]
[1756920606091,0.2,211.43,211.42,61.05482983]
[1756920606627,0.2,211.43,211.42,61.33915297]
[1756920607588,0.2,211.43,211.42,65.95846731]
[1756920609413,0.2,211.43,211.42,60.66915297]
[1756920609594,0.2,211.43,211.42,61.33915297]
[1756920610109,0.2,211.43,211.42,60.66915297]
[1756920611395,0.2,211.43,211.39,4.61931434]
[1756920611396,5.49931434,211.43,211.39,4.73041886]
[1756920611599,4.61931434,211.41,211.4,36.68]
[1756920611912,5.27931434,211.41,211.4,36.68]
[1756920612988,0.2,211.43,211.4,36.68]
[1756920613191,0.2,211.43,211.41,13.59559401]
[1756920613397,0.2,211.43,211.42,36.68]
[1756920613796,5.47931434,211.43,211.42,36.68]
[1756920614424,0.2,211.43,211.42,36.68]
[1756920614726,0.2,211.43,211.42,37.38]
[1756920615223,0.2,211.43,211.42,55.70551549]
[1756920615528,0.2,211.43,211.42,55.98983863]
[1756920615697,0.2,211.43,211.42,60.60915297]
[1756920615891,0.06,211.46,211.43,13.87991715]
[1756920616090,0.06,211.46,211.45,18.21490835]
[1756920616501,0.06,211.46,211.45,23.9284819]
[1756920618203,0.06,211.46,211.45,18.60916756]
[1756920618403,0.06,211.46,211.45,55.28916756]
[1756920618600,0.06,211.46,211.45,60.6084819]
[1756920621126,1e-08,211.46,211.45,60.6084819]
[1756920621326,1e-08,211.46,211.45,55.98916756]
[1756920621532,1e-08,211.46,211.45,60.6084819]
[1756920621706,1e-08,211.46,211.45,62.50291463]
[1756920622709,1e-08,211.46,211.45,141.10291463]
[1756920623926,1e-08,211.48,211.47,39.87991715]
[1756920624243,1e-08,211.49,211.48,13.87991715]
[1756920624418,1e-08,211.49,211.48,14.57991715]
[1756920624726,1e-08,211.49,211.48,23.92781102]
[1756920624913,1e-08,211.49,211.48,28.54712536]
[1756920626229,1e-08,211.49,211.48,23.92781102]
[1756920626424,1e-08,211.49,211.48,28.54712536]
[1756920627301,1e-08,211.49,211.48,23.92781102]
[1756920627504,1e-08,211.49,211.48,28.54712536]
[1756920628107,1e-08,211.49,211.48,107.14712536]
[1756920629127,1e-08,211.49,211.48,143.82712536]
[1756920631622,1e-08,211.49,211.48,65.22712536]
[1756920632513,1e-08,211.49,211.48,28.54712536]
[1756920632728,1e-08,211.49,211.48,65.20712536]
[1756920633530,1e-08,211.49,211.48,27.84712536]
[1756920633734,1e-08,211.49,211.48,23.22781102]
[1756920633936,1e-08,211.49,211.48,64.50712536]
[1756920634932,1e-08,211.49,211.48,27.84712536]
[1756920635336,0.66000001,211.49,211.48,64.50712536]
[1756920635550,0.66000001,211.49,211.48,18.32417354]
[1756920635958,0.66000001,211.49,211.48,55.12633511]
[1756920636160,0.66000001,211.49,211.48,13.59559401]
[1756920636658,0.66000001,211.49,211.48,50.25559401]
[1756920636834,1e-08,211.49,211.48,54.98417354]
[1756920637038,1e-08,211.49,211.48,59.88781102]
[1756920637247,1e-08,211.49,211.48,74.09471084]
[1756920637648,1e-08,211.49,211.48,74.12471084]
[1756920639271,1e-08,211.49,211.48,74.82471084]
[1756920639660,1e-08,211.49,211.48,74.12471084]
[1756920640159,1e-08,211.49,211.48,74.82471084]
[1756920641364,1e-08,211.49,211.48,70.2053965]
[1756920641747,1e-08,211.49,211.48,74.82471084]
[1756920641960,0.68000001,211.49,211.48,69.5053965]
[1756920642258,0.68000001,211.49,211.48,74.12471084]
[1756920642459,1e-08,211.49,211.48,74.12471084]
[1756920643056,1e-08,211.49,211.48,74.78471084]
[1756920643255,1e-08,211.49,211.48,74.12471084]
[1756920643557,1e-08,211.49,211.48,73.11785319]
[1756920645260,1e-08,211.49,211.48,70.1653965]
[1756920645451,1e-08,211.49,211.48,73.11785319]
[1756920646049,1e-08,211.49,211.48,70.1653965]
[1756920646262,1e-08,211.49,211.48,73.11785319]
[1756920648668,3.97091629,211.7,211.49,0.28432314]
[1756920648880,0.68,211.64,211.6,16.5480507]
[1756920649049,14.19950302,211.74,211.63,16.83237384]
[1756920649243,3.97091629,211.79,211.68,0.28432314]
[1756920649466,2.95245669,211.72,211.7,13.59559401]
[1756920649671,2.95245669,211.72,211.71,50.27559401]
[1756920650254,3.63245669,211.72,211.71,50.27559401]
[1756920650742,0.68,211.72,211.71,50.27559401]
[1756920652672,0.68,211.72,211.71,54.99903645]
[1756920653169,0.68,211.72,211.71,55.26335959]
[1756920653555,26.0,211.75,211.71,55.26335959]
[1756920653775,0.68,211.74,211.72,13.59559401]
[1756920654078,41.89283617,211.89,211.71,41.66776558]
[1756920654079,4.72032098,211.85,211.74,0.28432314]
[1756920654251,2.95245669,211.81,211.76,13.87991715]
[1756920654444,0.68,211.8,211.78,13.59559401]
[1756920654650,2.95245669,211.81,211.79,36.98]
[1756920654849,2.95245669,211.81,211.8,36.98]
[1756920655070,26.0,211.82,211.8,36.98]
[1756920655375,0.68,211.81,211.8,50.57559401]
[1756920655666,3.63245669,211.81,211.8,13.59559401]
[1756920656060,0.68,211.81,211.8,50.57559401]
[1756920656443,0.74,211.81,211.8,50.57559401]
[1756920656850,0.74,211.81,211.8,50.55559401]
[1756920657288,0.06,211.81,211.8,13.59559401]
[1756920657479,0.74,211.81,211.8,13.59559401]
[1756920657969,0.74,211.81,211.8,50.53559401]
[1756920658189,0.74,211.81,211.8,13.59559401]
[1756920658371,0.74,211.81,211.8,50.53559401]
[1756920658956,0.74,211.81,211.8,13.59559401]
[1756920659164,0.06,211.81,211.8,50.53559401]
[1756920659367,0.06,211.81,211.8,50.81991715]
[1756920659577,0.06,211.81,211.8,59.17380915]
[1756920659778,0.06,211.81,211.8,62.12626584]